[Event "Klubbmästerskap 2025 Tisdag"]
[Site "Linköping, Sweden"]
[Date "2025.01.21"]
[Round "2.1"]
[White "Grundel, Sam"]
[Black "Carlsson, Ingvar"]
[Result "1-0"]
[TimeControl "90 min + 30 sec/move"]
[WhiteElo "2019"]
[BlackElo "1996"]

1. e4 {[%clk 01:30:57]} {[%emt 00:00:03]} e6 {[%clk 01:30:47]} {[%emt
00:00:13]} 2. d4 {[%clk 01:31:11]} {[%emt 00:00:16]} d5 {[%clk 01:31:08]}
{[%emt 00:00:09]} 3. Nc3 {[%clk 01:31:14]} {[%emt 00:00:27]} Nf6 {[%clk
01:31:23]} {[%emt 00:00:14]} 4. e5 {[%clk 01:31:29]} {[%emt 00:00:15]} Nfd7
{[%clk 01:31:47]} {[%emt 00:00:06]} 5. f4 {[%clk 01:31:45]} {[%emt 00:00:14]}
c5 {[%clk 01:32:08]} {[%emt 00:00:09]} 6. Nf3 {[%clk 01:31:53]} {[%emt
00:00:23]} Nc6 {[%clk 01:32:32]} {[%emt 00:00:06]} 7. Be3 {[%clk 01:32:13]}
{[%emt 00:00:09]} a6 {[%clk 01:32:20]} {[%emt 00:00:43]} 8. Qd2 {[%clk
01:32:20]} {[%emt 00:00:23]} b5 {[%clk 01:32:30]} {[%emt 00:00:20]} 9. a3
{[%clk 01:32:31]} {[%emt 00:00:19]} Be7 {[%clk 01:22:18]} {[%emt 00:10:42]} 10.
Bd3 {[%clk 01:23:29]} {[%emt 00:09:33]} f5 {[%clk 00:57:50]} {[%emt 00:24:57]}
11. exf6 {[%clk 01:10:08]} {[%emt 00:13:51]} Bxf6 {[%clk 00:55:11]} {[%emt
00:03:08]} 12. dxc5 {[%clk 00:55:40]} {[%emt 00:14:59]} Bb7 {[%clk 00:09:23]}
{[%emt 00:46:18]} 13. Bf2 {[%clk 00:41:07]} {[%emt 00:15:03]} O-O {[%clk
00:06:03]} {[%emt 00:03:50]} 14. O-O {[%clk 00:39:25]} {[%emt 00:02:12]} Qe7
{[%clk 00:04:14]} {[%emt 00:02:20]} 15. Rae1 {[%clk 00:27:24]} {[%emt
00:12:30]} Bxc3 {[%clk 00:04:14]} {[%emt 00:00:30]} 16. Qxc3 {[%clk 00:27:33]}
{[%emt 00:00:20]} Rxf4 {[%clk 00:04:22]} {[%emt 00:00:21]} 17. Bg3 {[%clk
00:26:37]} {[%emt 00:01:26]} Rf7 {[%clk 00:00:41]} {[%emt 00:04:12]} 18. Bd6
{[%clk 00:25:02]} {[%emt 00:02:05]} Qe8 {[%clk 00:00:39]} {[%emt 00:00:32]} 19.
Bxh7+ {[%clk 00:23:53]} {[%emt 00:01:39]} 1-0

[Event "Klubbmästerskap 2025 Tisdag"]
[Site "Linköping, Sweden"]
[Date "2025.01.21"]
[Round "2.2"]
[White "Olsson, Simon"]
[Black "Malm, Simon 1995"]
[Result "1-0"]
[TimeControl "90 min + 30 sec/move"]
[WhiteElo "2075"]
[BlackElo "1976"]

1. d4 {[%clk 01:30:57]} {[%emt 00:00:02]} d5 {[%clk 01:30:45]} {[%emt
00:00:16]} 2. c4 {[%clk 01:31:26]} {[%emt 00:00:02]} e6 {[%clk 01:30:31]}
{[%emt 00:00:43]} 3. Nc3 {[%clk 01:31:51]} {[%emt 00:00:05]} Nf6 {[%clk
01:30:56]} {[%emt 00:00:05]} 4. cxd5 {[%clk 01:31:56]} {[%emt 00:00:25]} exd5
{[%clk 01:30:34]} {[%emt 00:00:52]} 5. Bg5 {[%clk 01:32:21]} {[%emt 00:00:05]}
Be7 {[%clk 01:30:56]} {[%emt 00:00:07]} 6. e3 {[%clk 01:32:40]} {[%emt
00:00:11]} c6 {[%clk 01:31:12]} {[%emt 00:00:14]} 7. Bd3 {[%clk 01:32:55]}
{[%emt 00:00:16]} O-O {[%clk 01:31:27]} {[%emt 00:00:13]} 8. Qc2 {[%clk
01:31:20]} {[%emt 00:02:06]} Nbd7 {[%clk 01:31:34]} {[%emt 00:00:23]} 9. Nge2
{[%clk 01:30:47]} {[%emt 00:01:03]} Re8 {[%clk 01:31:12]} {[%emt 00:00:52]} 10.
O-O-O {[%clk 01:30:36]} {[%emt 00:00:42]} b5 {[%clk 01:31:14]} {[%emt
00:00:27]} 11. h3 {[%clk 01:27:43]} {[%emt 00:03:22]} a5 {[%clk 01:31:10]}
{[%emt 00:00:35]} 12. g4 {[%clk 01:27:29]} {[%emt 00:00:44]} Nf8 {[%clk
01:27:49]} {[%emt 00:03:51]} 13. Ng3 {[%clk 01:17:08]} {[%emt 00:10:51]} a4
{[%clk 01:18:31]} {[%emt 00:09:48]} 14. Kb1 {[%clk 01:13:06]} {[%emt 00:04:32]}
Qa5 {[%clk 01:18:27]} {[%emt 00:00:34]} 15. Nce2 {[%clk 01:12:39]} {[%emt
00:00:56]} b4 {[%clk 01:18:14]} {[%emt 00:00:44]} 16. Bxf6 {[%clk 01:10:01]}
{[%emt 00:03:09]} b3 {[%clk 01:00:29]} {[%emt 00:18:15]} 17. Qxc6 {[%clk
01:09:12]} {[%emt 00:01:19]} Bd7 {[%clk 00:54:45]} {[%emt 00:06:14]} 18. Qxa8
{[%clk 01:09:11]} {[%emt 00:00:31]} bxa2+ {[%clk 00:54:25]} {[%emt 00:00:49]}
19. Kxa2 {[%clk 01:08:53]} {[%emt 00:00:48]} Qxa8 {[%clk 00:53:53]} {[%emt
00:01:01]} 20. Bxe7 {[%clk 01:08:46]} {[%emt 00:00:37]} Rxe7 {[%clk 00:54:21]}
{[%emt 00:00:02]} 21. Rc1 {[%clk 01:06:38]} {[%emt 00:02:39]} Qb7 {[%clk
00:49:27]} {[%emt 00:05:24]} 22. Rc3 {[%clk 01:06:18]} {[%emt 00:00:50]} Re8
{[%clk 00:47:43]} {[%emt 00:02:14]} 23. Rhc1 {[%clk 01:04:39]} {[%emt
00:02:08]} Rb8 {[%clk 00:48:00]} {[%emt 00:00:13]} 24. R1c2 {[%clk 01:04:38]}
{[%emt 00:00:32]} Ne6 {[%clk 00:47:03]} {[%emt 00:01:27]} 25. Nc1 {[%clk
01:00:36]} {[%emt 00:04:32]} g6 {[%clk 00:39:20]} {[%emt 00:08:13]} 26. f4
{[%clk 00:57:07]} {[%emt 00:03:58]} Qb6 {[%clk 00:34:34]} {[%emt 00:05:15]} 27.
Be2 {[%clk 00:41:37]} {[%emt 00:16:00]} Bb5 {[%clk 00:24:55]} {[%emt 00:10:09]}
28. Bxb5 {[%clk 00:28:40]} {[%emt 00:13:28]} Qxb5 {[%clk 00:25:23]} {[%emt
00:00:02]} 29. f5 {[%clk 00:28:57]} {[%emt 00:00:12]} Nd8 {[%clk 00:20:02]}
{[%emt 00:05:52]} 30. Rc5 {[%clk 00:25:39]} {[%emt 00:03:48]} Qb7 {[%clk
00:20:13]} {[%emt 00:00:18]} 31. Nge2 {[%clk 00:16:30]} {[%emt 00:09:39]} gxf5
{[%clk 00:18:49]} {[%emt 00:01:54]} 32. gxf5 {[%clk 00:16:53]} {[%emt
00:00:07]} Qd7 {[%clk 00:19:01]} {[%emt 00:00:18]} 33. Ng3 {[%clk 00:13:23]}
{[%emt 00:04:00]} Qd6 {[%clk 00:17:40]} {[%emt 00:01:52]} 34. Nh5 {[%clk
00:13:26]} {[%emt 00:00:27]} Kf8 {[%clk 00:15:21]} {[%emt 00:02:49]} 35. Nf4
{[%clk 00:12:24]} {[%emt 00:01:31]} Qf6 {[%clk 00:13:07]} {[%emt 00:02:43]} 36.
Rxd5 {[%clk 00:11:20]} {[%emt 00:01:35]} Nc6 {[%clk 00:13:11]} {[%emt
00:00:27]} 37. Ne6+ {[%clk 00:11:04]} {[%emt 00:00:46]} fxe6 {[%clk 00:08:18]}
{[%emt 00:05:23]} 38. Rxc6 {[%clk 00:11:26]} {[%emt 00:00:07]} Qe7 {[%clk
00:08:04]} {[%emt 00:00:43]} 39. fxe6 {[%clk 00:09:48]} {[%emt 00:02:09]} Qb7
{[%clk 00:07:14]} {[%emt 00:01:20]} 40. Rf5+ {[%clk 00:10:04]} {[%emt
00:00:13]} Ke8 {[%clk 00:05:30]} {[%emt 00:02:15]} 41. Rc2 {[%clk 00:10:07]}
{[%emt 00:00:27]} Qe4 {[%clk 00:03:42]} {[%emt 00:02:18]} 42. Rfc5 {[%clk
00:07:51]} {[%emt 00:02:46]} Qxe6+ {[%clk 00:03:35]} {[%emt 00:00:37]} 43. d5
{[%clk 00:06:14]} {[%emt 00:02:07]} Qxh3 {[%clk 00:04:03]} {[%emt 00:00:02]} 44.
e4 {[%clk 00:06:30]} {[%emt 00:00:13]} h5 {[%clk 00:01:58]} {[%emt 00:02:35]}
45. R5c3 {[%clk 00:03:22]} {[%emt 00:03:38]} Qh1 {[%clk 00:02:04]} {[%emt
00:00:24]} 46. Rg3 {[%clk 00:02:54]} {[%emt 00:00:57]} Kd7 {[%clk 00:01:39]}
{[%emt 00:00:55]} 47. Nd3 {[%clk 00:01:22]} {[%emt 00:02:02]} Re8 {[%clk
00:02:08]} 48. Rg7+ {[%clk 00:01:00]} {[%emt 00:00:52]} Kd8 {[%clk 00:01:54]}
{[%emt 00:00:45]} 49. Rcc7 {[%clk 00:01:01]} {[%emt 00:00:29]} Rxe4 {[%clk
00:02:02]} {[%emt 00:00:23]} 50. Rgd7+ {[%clk 00:00:53]} {[%emt 00:00:38]} Ke8
{[%clk 00:02:30]} {[%emt 00:00:02]} 51. Nc5 {[%clk 00:01:13]} {[%emt 00:00:09]}
Kf8 {[%clk 00:01:00]} {[%emt 00:02:01]} 52. Rc8+ {[%clk 00:01:16]} {[%emt
00:00:28]} Re8 {[%clk 00:01:28]} {[%emt 00:00:02]} 53. Ne6+ {[%clk 00:01:38]}
{[%emt 00:00:07]} Kg8 {[%clk 00:01:57]} {[%emt 00:00:02]} 54. Rxe8# {[%clk
00:02:02]} {[%emt 00:00:06]} 1-0

[Event "Klubbmästerskap 2025 Tisdag"]
[Site "Linköping, Sweden"]
[Date "2025.01.21"]
[Round "2.3"]
[White "Rosenbecker, Daniel"]
[Black "Nyberg, Peter"]
[Result "1-0"]
[TimeControl "90 min + 30 sec/move"]
[WhiteTitle "CM"]
[WhiteElo "2110"]
[BlackElo "1972"]

1. d4 {[%clk 01:30:56]} {[%emt 00:00:03]} d5 {[%clk 01:30:43]} {[%emt
00:00:18]} 2. c4 {[%clk 01:30:57]} {[%emt 00:00:28]} e6 {[%clk 01:31:07]}
{[%emt 00:00:07]} 3. Nf3 {[%clk 01:28:51]} {[%emt 00:02:35]} Nf6 {[%clk
01:31:30]} {[%emt 00:00:07]} 4. g3 {[%clk 01:27:24]} {[%emt 00:01:57]} dxc4
{[%clk 01:30:26]} {[%emt 00:01:35]} 5. Bg2 {[%clk 01:27:28]} {[%emt 00:00:26]}
a6 {[%clk 01:30:33]} {[%emt 00:00:23]} 6. O-O {[%clk 01:26:06]} {[%emt
00:01:51]} Nc6 {[%clk 01:29:21]} {[%emt 00:01:43]} 7. Qc2 {[%clk 01:22:52]}
{[%emt 00:03:43]} b5 {[%clk 01:04:45]} {[%emt 00:25:07]} 8. b3 {[%clk
01:16:25]} {[%emt 00:06:56]} Nb4 {[%clk 01:02:54]} {[%emt 00:02:21]} 9. Qd1
{[%clk 01:16:44]} {[%emt 00:00:10]} cxb3 {[%clk 01:02:41]} {[%emt 00:00:43]} 10.
Qxb3 {[%clk 01:14:13]} {[%emt 00:03:00]} Bb7 {[%clk 01:00:32]} {[%emt
00:02:40]} 11. a3 {[%clk 01:08:30]} {[%emt 00:06:14]} Nbd5 {[%clk 00:56:21]}
{[%emt 00:04:41]} 12. a4 {[%clk 01:08:49]} {[%emt 00:00:10]} b4 {[%clk
00:37:37]} {[%emt 00:19:14]} 13. a5 {[%clk 01:06:24]} {[%emt 00:02:55]} c5
{[%clk 00:28:29]} {[%emt 00:09:39]} 14. Ne5 {[%clk 01:06:24]} {[%emt 00:00:30]}
Nd7 {[%clk 00:27:34]} {[%emt 00:01:25]} 15. Nd2 {[%clk 00:53:24]} {[%emt
00:13:29]} cxd4 {[%clk 00:24:09]} {[%emt 00:03:56]} 16. Nxd7 {[%clk 00:48:54]}
{[%emt 00:05:00]} Qxd7 {[%clk 00:24:38]} 17. Nc4 {[%clk 00:47:16]} {[%emt
00:02:08]} Bc5 {[%clk 00:20:17]} {[%emt 00:04:51]} 18. Bb2 {[%clk 00:39:53]}
{[%emt 00:07:53]} Nc3 {[%clk 00:16:12]} {[%emt 00:04:34]} 19. Bxc3 {[%clk
00:37:15]} {[%emt 00:03:08]} Bxg2 {[%clk 00:15:50]} {[%emt 00:00:52]} 20. Bxb4
{[%clk 00:37:38]} {[%emt 00:00:08]} Qb5 {[%clk 00:13:07]} {[%emt 00:03:13]} 21.
Kxg2 {[%clk 00:27:59]} {[%emt 00:10:09]} Rb8 {[%clk 00:11:18]} {[%emt
00:02:19]} 22. Qd3 {[%clk 00:27:45]} {[%emt 00:00:44]} Qc6+ {[%clk 00:10:29]}
{[%emt 00:01:19]} 23. f3 {[%clk 00:27:31]} {[%emt 00:00:44]} Rxb4 {[%clk
00:09:36]} {[%emt 00:01:23]} 24. Rfc1 {[%clk 00:27:06]} {[%emt 00:00:54]} O-O
{[%clk 00:08:29]} {[%emt 00:01:37]} 25. Ne5 {[%clk 00:25:39]} {[%emt 00:01:57]}
Qd5 {[%clk 00:07:08]} {[%emt 00:01:51]} 26. Nd7 {[%clk 00:25:18]} {[%emt
00:00:51]} Qxd7 {[%clk 00:06:07]} {[%emt 00:01:31]} 27. Rxc5 {[%clk 00:25:42]}
{[%emt 00:00:06]} Rb5 {[%clk 00:04:45]} {[%emt 00:01:51]} 28. Rac1 {[%clk
00:26:00]} {[%emt 00:00:12]} Rxc5 {[%clk 00:04:40]} {[%emt 00:00:36]} 29. Rxc5
{[%clk 00:26:26]} {[%emt 00:00:04]} Qd6 {[%clk 00:04:06]} {[%emt 00:01:04]} 30.
Qc4 {[%clk 00:26:44]} {[%emt 00:00:11]} h6 {[%clk 00:01:46]} {[%emt 00:02:50]}
31. Rc6 {[%clk 00:27:10]} {[%emt 00:00:04]} Qe5 {[%clk 00:01:56]} {[%emt
00:00:19]} 32. Qxa6 {[%clk 00:26:07]} {[%emt 00:01:34]} Kh7 {[%clk 00:01:46]}
{[%emt 00:00:40]} 33. Qd3+ {[%clk 00:26:29]} {[%emt 00:00:08]} f5 {[%clk
00:01:44]} {[%emt 00:00:33]} 34. a6 {[%clk 00:26:40]} {[%emt 00:00:19]} Qd5
{[%clk 00:01:24]} {[%emt 00:00:49]} 35. Rc7 {[%clk 00:14:16]} {[%emt 00:12:54]}
e5 {[%clk 00:01:37]} {[%emt 00:00:17]} 36. Qa3 {[%clk 00:13:51]} {[%emt
00:00:54]} Re8 {[%clk 00:01:34]} {[%emt 00:00:34]} 37. a7 {[%clk 00:05:32]}
{[%emt 00:08:50]} e4 {[%clk 00:01:43]} {[%emt 00:00:21]} 38. Kf2 {[%clk
00:01:44]} {[%emt 00:04:17]} d3 {[%clk 00:01:06]} {[%emt 00:01:06]} 39. Qc3
{[%clk 00:01:21]} {[%emt 00:00:54]} e3+ {[%clk 00:00:40]} {[%emt 00:00:57]} 40.
Kg2 {[%clk 00:01:39]} {[%emt 00:00:12]} Rg8 {[%clk 00:00:42]} {[%emt 00:00:28]}
41. Qxd3 {[%clk 00:01:46]} {[%emt 00:00:22]} Qxd3 {[%clk 00:00:39]} {[%emt
00:00:33]} 42. exd3 {[%clk 00:02:11]} {[%emt 00:00:05]} Kg6 {[%clk 00:00:54]}
{[%emt 00:00:15]} 43. f4 {[%clk 00:01:59]} {[%emt 00:00:42]} Kf6 {[%clk
00:01:13]} {[%emt 00:00:11]} 44. Rc6+ {[%clk 00:02:00]} {[%emt 00:00:29]} Ke7
{[%clk 00:01:24]} {[%emt 00:00:19]} 45. Kf3 {[%clk 00:02:03]} {[%emt 00:00:27]}
Re8 {[%clk 00:01:16]} {[%emt 00:00:38]} 46. Ke2 {[%clk 00:01:37]} {[%emt
00:00:56]} Kd7 {[%clk 00:01:26]} {[%emt 00:00:20]} 47. Rb6 {[%clk 00:02:01]}
{[%emt 00:00:06]} Kc7 {[%clk 00:01:39]} {[%emt 00:00:17]} 48. Rb8 {[%clk
00:02:17]} {[%emt 00:00:15]} Rxb8 {[%clk 00:02:03]} {[%emt 00:00:05]} 49.
axb8=Q+ {[%clk 00:02:40]} {[%emt 00:00:06]} Kxb8 {[%clk 00:02:30]} {[%emt
00:00:03]} 50. Kxe3 {[%clk 00:03:03]} {[%emt 00:00:08]} Kc7 {[%clk 00:02:50]}
{[%emt 00:00:10]} 51. Kd4 {[%clk 00:03:18]} {[%emt 00:00:14]} Kd6 {[%clk
00:03:14]} {[%emt 00:00:07]} 52. h4 {[%clk 00:03:21]} {[%emt 00:00:27]} Ke6
{[%clk 00:03:33]} {[%emt 00:00:11]} 53. Kc5 {[%clk 00:03:34]} {[%emt 00:00:17]}
Kf6 {[%clk 00:03:57]} {[%emt 00:00:06]} 54. d4 {[%clk 00:03:21]} {[%emt
00:00:43]} g5 {[%clk 00:04:17]} {[%emt 00:00:10]} 55. d5 {[%clk 00:03:18]}
{[%emt 00:00:32]} Kg6 {[%clk 00:04:14]} {[%emt 00:00:34]} 56. d6 {[%clk
00:03:28]} {[%emt 00:00:20]} Kh5 {[%clk 00:04:39]} {[%emt 00:00:04]} 57. hxg5
{[%clk 00:03:49]} {[%emt 00:00:09]} hxg5 {[%clk 00:04:58]} {[%emt 00:00:12]} 58.
d7 {[%clk 00:04:10]} {[%emt 00:00:09]} gxf4 {[%clk 00:05:19]} {[%emt 00:00:08]}
59. gxf4 {[%clk 00:04:29]} {[%emt 00:00:11]} Kg4 {[%clk 00:05:47]} {[%emt
00:00:03]} 60. d8=Q {[%clk 00:04:49]} {[%emt 00:00:10]} Kxf4 {[%clk 00:06:13]}
{[%emt 00:00:04]} 61. Kd4 {[%clk 00:04:32]} {[%emt 00:00:46]} Kf3 {[%clk
00:06:31]} {[%emt 00:00:12]} 62. Qg5 {[%clk 00:04:57]} {[%emt 00:00:06]} f4
{[%clk 00:06:53]} {[%emt 00:00:08]} 63. Ke5 {[%clk 00:05:20]} {[%emt 00:00:07]}
Ke2 {[%clk 00:07:14]} {[%emt 00:00:09]} 64. Qxf4 {[%clk 00:05:46]} {[%emt
00:00:04]} Ke1 {[%clk 00:07:40]} {[%emt 00:00:04]} 65. Qh2 {[%clk 00:06:11]}
{[%emt 00:00:05]} Kd1 {[%clk 00:08:02]} {[%emt 00:00:07]} 66. Kd4 {[%clk
00:06:38]} {[%emt 00:00:03]} Kc1 {[%clk 00:08:26]} {[%emt 00:00:06]} 67. Kc3
{[%clk 00:07:04]} {[%emt 00:00:03]} Kb1 {[%clk 00:08:53]} {[%emt 00:00:03]} 68.
Qb2# {[%clk 00:07:31]} {[%emt 00:00:03]} 1-0

[Event "Klubbmästerskap 2025 Tisdag"]
[Site "Linköping, Sweden"]
[Date "2025.01.21"]
[Round "2.4"]
[White "Pavlic, Oliver"]
[Black "Andersson, Mats 1960"]
[Result "0-1"]
[TimeControl "90 min + 30 sec/move"]
[BlackTitle "FM"]
[WhiteElo "1950"]
[BlackElo "2263"]

1. c4 {[%clk 01:30:50]} {[%emt 00:00:09]} e6 {[%clk 01:30:28]} {[%emt
00:00:32]} 2. Nf3 {[%clk 01:31:02]} {[%emt 00:00:18]} Nf6 {[%clk 01:30:34]}
{[%emt 00:00:23]} 3. Nc3 {[%clk 01:31:17]} {[%emt 00:00:16]} d5 {[%clk
01:30:33]} {[%emt 00:00:31]} 4. e3 {[%clk 01:31:40]} {[%emt 00:00:07]} Be7
{[%clk 01:28:28]} {[%emt 00:02:36]} 5. b3 {[%clk 01:32:00]} {[%emt 00:00:10]}
O-O {[%clk 01:27:23]} {[%emt 00:01:33]} 6. Bb2 {[%clk 01:32:23]} {[%emt
00:00:08]} b6 {[%clk 01:23:30]} {[%emt 00:04:24]} 7. cxd5 {[%clk 01:32:44]}
{[%emt 00:00:09]} exd5 {[%clk 01:22:33]} {[%emt 00:01:26]} 8. Qc2 {[%clk
01:31:48]} {[%emt 00:01:26]} Bb7 {[%clk 01:14:20]} {[%emt 00:08:42]} 9. d4
{[%clk 01:31:21]} {[%emt 00:00:56]} Na6 {[%clk 01:08:34]} {[%emt 00:06:17]} 10.
a3 {[%clk 01:25:06]} {[%emt 00:06:46]} c5 {[%clk 01:06:07]} {[%emt 00:02:57]}
11. Bd3 {[%clk 01:24:40]} {[%emt 00:00:57]} Nc7 {[%clk 01:00:20]} {[%emt
00:06:15]} 12. O-O {[%clk 01:21:22]} {[%emt 00:03:49]} Ne6 {[%clk 00:58:31]}
{[%emt 00:02:19]} 13. Rac1 {[%clk 01:17:30]} {[%emt 00:04:23]} Rc8 {[%clk
00:57:30]} {[%emt 00:01:31]} 14. Qb1 {[%clk 01:17:20]} {[%emt 00:00:41]} Bd6
{[%clk 00:48:47]} {[%emt 00:09:12]} 15. Ne2 {[%clk 01:16:25]} {[%emt 00:01:25]}
Ne4 {[%clk 00:40:33]} {[%emt 00:08:43]} 16. Ng3 {[%clk 01:12:44]} {[%emt
00:04:13]} f5 {[%clk 00:39:05]} {[%emt 00:01:58]} 17. Rfe1 {[%clk 01:07:13]}
{[%emt 00:06:01]} Qe7 {[%clk 00:34:53]} {[%emt 00:04:41]} 18. a4 {[%clk
00:56:57]} {[%emt 00:10:47]} Rce8 {[%clk 00:31:55]} {[%emt 00:03:26]} 19. Ne5
{[%clk 00:54:15]} {[%emt 00:03:15]} Bxe5 {[%clk 00:30:21]} {[%emt 00:02:05]} 20.
dxe5 {[%clk 00:54:38]} {[%emt 00:00:07]} Qh4 {[%clk 00:22:34]} {[%emt
00:08:16]} 21. Qc2 {[%clk 00:51:40]} {[%emt 00:03:28]} Rf7 {[%clk 00:12:58]}
{[%emt 00:10:04]} 22. Rf1 {[%clk 00:41:03]} {[%emt 00:11:08]} Ref8 {[%clk
00:12:03]} {[%emt 00:01:26]} 23. Nxf5 {[%clk 00:37:29]} {[%emt 00:04:04]} Rxf5
{[%clk 00:12:12]} {[%emt 00:00:21]} 24. f3 {[%clk 00:36:14]} {[%emt 00:01:45]}
Rh5 {[%clk 00:12:22]} {[%emt 00:00:19]} 0-1

[Event "Klubbmästerskap 2025 Tisdag"]
[Site "Linköping, Sweden"]
[Date "2025.01.21"]
[Round "2.5"]
[White "Larsson, Elin"]
[Black "Modéer, Björn"]
[Result "1-0"]
[TimeControl "90 min + 30 sec/move"]
[WhiteElo "1666"]
[BlackElo "1700"]

1. e4 {[%clk 01:30:57]} {[%emt 00:00:02]} c6 {[%clk 01:30:50]} {[%emt
00:00:10]} 2. d4 {[%clk 01:31:05]} {[%emt 00:00:22]} d5 {[%clk 01:31:14]}
{[%emt 00:00:07]} 3. e5 {[%clk 01:31:18]} {[%emt 00:00:16]} c5 {[%clk
01:31:28]} {[%emt 00:00:16]} 4. c3 {[%clk 01:24:54]} {[%emt 00:06:54]} Nc6
{[%clk 01:31:24]} {[%emt 00:00:34]} 5. Nf3 {[%clk 01:23:48]} {[%emt 00:01:35]}
Bg4 {[%clk 01:31:14]} {[%emt 00:00:40]} 6. Be2 {[%clk 01:19:32]} {[%emt
00:04:46]} e6 {[%clk 01:30:15]} {[%emt 00:01:29]} 7. Be3 {[%clk 01:15:06]}
{[%emt 00:04:56]} cxd4 {[%clk 01:26:06]} {[%emt 00:04:39]} 8. cxd4 {[%clk
01:11:56]} {[%emt 00:03:40]} Bb4+ {[%clk 01:25:06]} {[%emt 00:01:31]} 9. Nc3
{[%clk 01:10:21]} {[%emt 00:02:04]} Nge7 {[%clk 01:22:53]} {[%emt 00:02:43]} 10.
h3 {[%clk 01:05:08]} {[%emt 00:05:42]} Bxf3 {[%clk 01:18:22]} {[%emt 00:05:01]}
11. Bxf3 {[%clk 01:03:29]} {[%emt 00:02:09]} O-O {[%clk 01:15:38]} {[%emt
00:03:05]} 12. O-O {[%clk 01:03:02]} {[%emt 00:01:06]} Bxc3 {[%clk 01:07:37]}
{[%emt 00:08:32]} 13. bxc3 {[%clk 01:03:17]} {[%emt 00:00:15]} Na5 {[%clk
01:07:35]} {[%emt 00:00:32]} 14. Be2 {[%clk 00:47:39]} {[%emt 00:16:07]} Rc8
{[%clk 01:05:33]} {[%emt 00:02:32]} 15. Qc2 {[%clk 00:39:57]} {[%emt 00:08:13]}
Nc4 {[%clk 01:04:18]} {[%emt 00:01:45]} 16. Bg5 {[%clk 00:33:52]} {[%emt
00:06:34]} h6 {[%clk 01:00:00]} {[%emt 00:04:48]} 17. Bh4 {[%clk 00:30:20]}
{[%emt 00:04:03]} g5 {[%clk 00:58:52]} {[%emt 00:01:38]} 18. Bg3 {[%clk
00:30:05]} {[%emt 00:00:44]} Qa5 {[%clk 00:58:17]} {[%emt 00:01:05]} 19. Rac1
{[%clk 00:21:23]} {[%emt 00:09:12]} Rc6 {[%clk 00:54:59]} {[%emt 00:03:48]} 20.
Bxc4 {[%clk 00:13:09]} {[%emt 00:08:44]} Rxc4 {[%clk 00:54:57]} {[%emt
00:00:31]} 21. f4 {[%clk 00:12:25]} {[%emt 00:01:15]} Nf5 {[%clk 00:50:19]}
{[%emt 00:05:09]} 22. Qd3 {[%clk 00:07:34]} {[%emt 00:05:20]} Rfc8 {[%clk
00:48:14]} {[%emt 00:02:34]} 23. Be1 {[%clk 00:04:33]} {[%emt 00:03:31]} Qa3
{[%clk 00:44:40]} {[%emt 00:04:05]} 24. Bd2 {[%clk 00:01:27]} {[%emt 00:03:36]}
Nxd4 {[%clk 00:36:59]} {[%emt 00:08:12]} 25. fxg5 {[%clk 00:00:57]} {[%emt
00:01:00]} Nf5 {[%clk 00:26:29]} {[%emt 00:11:00]} 26. gxh6 {[%clk 00:00:37]}
{[%emt 00:00:50]} Qc5+ {[%clk 00:25:01]} {[%emt 00:01:57]} 27. Kh2 {[%clk
00:00:35]} {[%emt 00:00:31]} Qe7 {[%clk 00:23:39]} {[%emt 00:01:53]} 28. Rf3
{[%clk 00:00:33]} {[%emt 00:00:32]} Kh8 {[%clk 00:20:01]} {[%emt 00:04:07]} 29.
Rcf1 {[%clk 00:00:36]} {[%emt 00:00:27]} Rg8 {[%clk 00:19:20]} {[%emt
00:01:12]} 30. g4 {[%clk 00:00:35]} {[%emt 00:00:31]} Nh4 {[%clk 00:17:32]}
{[%emt 00:02:17]} 31. Rxf7 {[%clk 00:00:40]} {[%emt 00:00:25]} Qxf7 {[%clk
00:14:23]} {[%emt 00:03:39]} 32. Rxf7 {[%clk 00:01:02]} {[%emt 00:00:07]} Ng6
{[%clk 00:14:35]} {[%emt 00:00:18]} 33. Bg5 {[%clk 00:00:39]} {[%emt 00:00:54]}
1-0

[Event "Klubbmästerskap 2025 Tisdag"]
[Site "Linköping, Sweden"]
[Date "2025.01.21"]
[Round "2.6"]
[White "Ivarsson, Simon"]
[Black "Larsson, Emma 2008"]
[Result "0-1"]
[TimeControl "90 min + 30 sec/move"]
[WhiteElo "1771"]
[BlackElo "1754"]

1. e4 {[%clk 01:30:54]} {[%emt 00:00:05]} c5 {[%clk 01:30:44]} {[%emt
00:00:17]} 2. Nf3 {[%clk 01:30:53]} {[%emt 00:00:30]} g6 {[%clk 01:31:04]}
{[%emt 00:00:11]} 3. Nc3 {[%clk 01:30:20]} {[%emt 00:01:03]} Bg7 {[%clk
01:30:54]} {[%emt 00:00:40]} 4. d3 {[%clk 01:28:57]} {[%emt 00:01:53]} e6
{[%clk 01:25:22]} {[%emt 00:06:02]} 5. Be3 {[%clk 01:28:14]} {[%emt 00:01:12]}
b6 {[%clk 01:24:20]} {[%emt 00:01:33]} 6. Be2 {[%clk 01:26:20]} {[%emt
00:02:23]} Nc6 {[%clk 01:23:29]} {[%emt 00:01:22]} 7. Qd2 {[%clk 01:22:43]}
{[%emt 00:04:07]} Nge7 {[%clk 01:21:09]} {[%emt 00:02:50]} 8. d4 {[%clk
01:19:59]} {[%emt 00:03:14]} d5 {[%clk 01:16:08]} {[%emt 00:05:31]} 9. exd5
{[%clk 01:19:08]} {[%emt 00:01:21]} exd5 {[%clk 01:14:28]} {[%emt 00:02:10]} 10.
Bb5 {[%clk 01:14:24]} {[%emt 00:05:15]} O-O {[%clk 01:13:28]} {[%emt 00:01:30]}
11. O-O-O {[%clk 01:09:29]} {[%emt 00:05:24]} c4 {[%clk 01:11:12]} {[%emt
00:02:45]} 12. Ne5 {[%clk 01:04:12]} {[%emt 00:05:48]} Nxe5 {[%clk 00:57:59]}
{[%emt 00:13:44]} 13. dxe5 {[%clk 01:03:56]} {[%emt 00:00:45]} Bb7 {[%clk
00:55:42]} {[%emt 00:02:47]} 14. Qe2 {[%clk 01:00:39]} {[%emt 00:03:47]} Qc7
{[%clk 00:52:54]} {[%emt 00:03:13]} 15. Bg5 {[%clk 00:53:10]} {[%emt 00:08:04]}
a6 {[%clk 00:48:25]} {[%emt 00:04:59]} 16. Ba4 {[%clk 00:51:04]} {[%emt
00:02:36]} b5 {[%clk 00:37:46]} {[%emt 00:11:09]} 17. f4 {[%clk 00:47:58]}
{[%emt 00:03:36]} bxa4 {[%clk 00:35:56]} {[%emt 00:02:20]} 18. Bxe7 {[%clk
00:47:50]} {[%emt 00:00:37]} Qxe7 {[%clk 00:36:13]} {[%emt 00:00:13]} 19. Nxd5
{[%clk 00:48:14]} {[%emt 00:00:06]} Bxd5 {[%clk 00:36:01]} {[%emt 00:00:43]} 20.
Rxd5 {[%clk 00:48:07]} {[%emt 00:00:37]} c3 {[%clk 00:34:24]} {[%emt 00:02:06]}
0-1